Cogmind - Beta 15 @@@ ROGUE MODE // 2025.08.30 @ 18:39:08 Player: Possibly A Hive Mind Result: Destroyed by CB-X36(R) with Subdweller Laser Performance ------------- Evolutions (0) 0 Regions Visited (3) 600 Robots Destroyed (21) 105 Value Destroyed (563) 563 Prototype IDs (5) 100 Alien Tech Used (0) 0 Bonus (20) 20 TOTAL SCORE: 1388 Bonus ------- Follower Combat Kills 58 Friendly Fire -38 Cogmind --------- Core Integrity 0/250 Matter 155/300 Energy 91/125 System Corruption 0% Temperature Cool (6) Movement Walking (190) Ox1 Location -10/Subcaves Parts ------- > --- POWER (1) -------- Light Ion Engine > --- PROPULSION (2) --- Improved Aluminum Leg > --- UTILITY (2) ------ Medium Storage Unit Targeting Computer > --- WEAPON (2) ------- Subdweller Shrapnel Launcher > --- INVENTORY (10) --- Subdweller Power Source Carbon-fiber Leg Carbon-fiber Leg Experimental Sensor Array Weapon Shielding Particle Gun Light EM Pulse Cannon Rocket Launcher Subdweller Shrapnel Launcher Peak State ------------ > --- POWER ------------ Light Ion Engine > --- PROPULSION ------- Improved Aluminum Leg Improved Aluminum Leg > --- UTILITY ---------- Medium Storage Unit Experimental Sensor Array > --- WEAPON ----------- Light EM Pulse Cannon Light EM Pulse Cannon > --- INVENTORY -------- Improved Aluminum Leg Improved Aluminum Leg Targeting Computer Weapon Shielding Weapon Shielding Particle Gun Particle Gun Rocket Launcher Rocket Launcher [Rating: 20] Favorites ----------- Power Light Ion Engine Engine Light Ion Engine Propulsion Improved Aluminum Leg Leg Improved Aluminum Leg Utility Medium Storage Unit Device Experimental Sensor Array Storage Medium Storage Unit Processor Targeting Computer Protection Weapon Shielding Weapon Light EM Pulse Cannon Energy Gun EM Pulse Gun Energy Cannon Light EM Pulse Cannon Ballistic Gun Light Assault Rifle Launcher Subdweller Shrapnel Launcher Impact Weapon Hammer Build | -11 -10 -10 -10 ------- Run | Yrd Mat Min Sub Slots Evolved . | . . . . Power . | . . . . Propulsion . | . . . . Utility . | . . . . Weapon . | . . . . Parts Attached 27 | 7 9 4 7 Power 4 | 1 1 . 2 Engine 4 | 1 1 . 2 Core . | . . . . Reactor . | . . . . Propulsion 7 | 2 4 . 1 Treads . | . . . . Leg 7 | 2 4 . 1 Wheel . | . . . . Hover . | . . . . Flight . | . . . . Utility 5 | 1 2 1 1 Device 1 | . . 1 . Storage 2 | 1 1 . . Processor 1 | . . . 1 Hackware . | . . . . Protection 1 | . 1 . . Artifact . | . . . . Weapon 11 | 3 2 3 3 Energy Gun 4 | 2 . 2 . Energy Cannon 3 | . 2 . 1 Ballistic Gun 1 | 1 . . . Ballistic Cannon . | . . . . Launcher 2 | . . . 2 Special Weapon . | . . . . Impact Weapon 1 | . . 1 . Slashing Weapon . | . . . . Piercing Weapon . | . . . . Special Melee Weapon . | . . . . Unidentified Prototypes 1 | . . 1 . Parts Lost 6 | . 1 . 5 Power 2 | . 1 . 1 Propulsion 2 | . . . 2 Utility 1 | . . . 1 Weapon 1 | . . . 1 Highest Loss Streak 3 | . 1 . 3 To Critical Strikes 1 | . . . 1 Average Backups 9 | 2 8 9 9 Power . | . . . . Propulsion 2 | . 2 2 1 Utility 2 | . 1 3 2 Weapon 4 | . 4 4 4 Tool/Special . | . . . . Unused Backups 18 | . 10 1 7 Power 2 | . 1 . 1 Propulsion 8 | . 5 . 3 Utility 4 | . 2 1 1 Weapon 4 | . 2 . 2 Tool/Special . | . . . . Average Slot Usage (%) 98 | . 98 100 98 Engine 13 | . 14 14 13 Leg 27 | . 28 28 27 Device 1 | . . 2 4 Storage 14 | . 14 14 14 Protection 11 | . 12 11 9 Energy Gun 9 | . 13 5 7 Energy Cannon 16 | . 14 21 12 Launcher 1 | . . . 8 Peak Build Rating 20 | 6 12 20 20 Average Rating 11 | 3 9 14 15 On Entrance 9 | . 6 12 20 Naked Turns . | . . . . Heaviest Build 28 | 11 22 22 28 Greatest Support 26 | 20 26 26 26 Greatest Overweight (x) 1 | . 1 . 1 Average Overweight (x) . | . . . . Largest Inventory Capacity 10 | 8 10 10 10 Average Capacity 9 | 6 9 10 10 Most Carried 10 | 5 10 10 10 Average Carried 9 | 2 8 9 9 Final Capacity 10 | 8 10 10 10 Final Carried 10 | 4 10 9 9 Class Distribution -------------------- 100% | Mutant Dominant Class ---------------- Mutant | -10/Materials Mutant | -10/Mines Mutant | -10/Subcaves Resources | -11 -10 -10 -10 ----------- Run | Yrd Mat Min Sub Matter Collected 553 | 159 201 27 166 Remotely . | . . . . Salvage Created 790 | . 512 180 98 Parts 44 | . 29 10 5 Haulers Intercepted . | . . . . Recyclers Shooed . | . . . . Parts Field Recycled . | . . . . Retrieved Matter . | . . . . Parts Self-Destructed 5 | . . . 5 Prevented . | . . . . Kills | -11 -10 -10 -10 ------- Run | Yrd Mat Min Sub Combat Hostiles Destroyed 17 | . 10 2 5 Guns 3 | . 3 . . Cannons 10 | . 6 2 2 AOE 4 | . 1 . 3 Classes Destroyed 6 | . 5 . 1 Worker 1 | . 1 . . Recycler 2 | . 1 1 . Watcher 1 | . 1 . . Swarmer 5 | . 3 2 . Grunt 7 | . 7 . . Subdweller 5 | . . . 5 Best Kill Streak 4 | . 4 1 2 Combat Bots Only 3 | . 3 1 2 Max Kills in Single Turn 2 | . 2 1 1 Gunslinging . | . . . . Exploded 1 | . 1 . 1 Melee . | . . . . Uniques/NPCs Destroyed . | . . . . Combat | -11 -10 -10 -10 -------- Run | Yrd Mat Min Sub Hostile Shots Fired 112 | . 56 35 21 Missed 31 | . 19 7 5 Hits 81 | . 37 28 16 Projectile 81 | . 37 28 16 Critical Strikes 2 | . . . 2 Actively Blocked 1 | . . . 1 Damage Taken 1227 | . 419 241 567 Core 255 | . 59 51 145 Absorbed by Shields . | . . . . Redirected to Shielding 86 | . 33 22 31 Regen/Repaired (Parts) 101 | . 101 . . Core Remaining (%) 100 | 100 . . . Volleys Fired 51 | . 26 9 16 Largest 2 | . 2 2 2 Hottest 130 | . 96 112 130 Shots Fired 102 | . 52 18 32 Gun 35 | . 26 . 9 Cannon 57 | . 26 18 13 Launcher 10 | . . . 10 Special . | . . . . Kinetic 9 | . . . 9 Thermal 10 | . . . 10 Explosive 1 | . . . 1 Electromagnetic 82 | . 52 18 12 Robot Hit Streak 18 | . 9 2 18 Robot Miss Streak 5 | . 2 5 . Penetration Max . | . . . . Secondary Targets . | . . . . Shots Hit Robots 61 | . 32 11 18 Core Hits 32 | . 18 7 7 Critical Kills 1 | . . 1 . Critical Parts Destroyed . | . . . . Critical Strikes 1 | . . 1 . Smash 1 | . . 1 . Melee Attacks 6 | . . 6 . Impact 6 | . . 6 . Slashing . | . . . . Piercing . | . . . . Sneak Attacks . | . . . . Combat Hostiles . | . . . . Follow-up Attacks . | . . . . Damage Inflicted 1940 | . 684 501 755 Guns 236 | . 201 . 35 Cannons 701 | . 401 121 179 Explosions 619 | . 78 . 541 Melee 338 | . . 338 . Ramming 46 | . 4 42 . Kinetic 472 | . . . 472 Thermal 139 | . 78 . 61 Explosive 69 | . . . 69 Electromagnetic 876 | . 602 121 153 Impact 338 | . . 338 . Slashing . | . . . . Piercing . | . . . . Highest Corruption . | . . . . Average Corruption . | . . . . Corruption Purged . | . . . . Corruption Blocked . | . . . . Overload Shots . | . . . . Overflow Damage 126 | . . 86 40 Projectiles . | . . . . Explosions 40 | . . . 40 Melee 86 | . . 86 . Knockbacks . | . . . . Impact . | . . . . Kinetic . | . . . . Secondary . | . . . . Self-Inflicted Damage 71 | . . . 71 Shots 3 | . . . 3 Rammed . | . . . . Targets Rammed 15 | . 2 13 . Kicked 15 | . 2 13 . Crushed . | . . . . Highest Temperature 300 | . 300 66 254 Average Temperature 84 | . 105 30 72 Received Heat Transfer 605 | . 201 . 404 Siege Activations . | . . . . Martial Activations . | . . . . Shielding Activations . | . . . . Robots Disrupted . | . . . . Combat Hostiles . | . . . . Robots Corrupted 1 | . . 1 . Combat Hostiles . | . . . . Parts Fried 1 | . 1 . . Impact Corruptions 4 | . . 4 . Robots Melted . | . . . . Combat Hostiles . | . . . . Parts Melted . | . . . . Heat Transferred 211 | . 100 . 111 Parts Sabotaged . | . . . . Parts Stolen . | . . . . Parts Stripped . | . . . . Power Chain Reactions 2 | . 2 . . Alert | -11 -10 -10 -10 ------- Run | Yrd Mat Min Sub Maximum Alert Level . | . . . . Low Security (%) 100 | 100 100 100 . Level 1 . | . . . . Level 2 . | . . . . Level 3 . | . . . . Level 4 . | . . . . Level 5 . | . . . . High Security . | . . . . Max Security . | . . . . Peak Influence 111 | . 111 81 . Initial 13 | . . 13 . Average 23 | . 30 15 . Influence Increases 539 | . 324 215 . Destroy 0b10 Robot/C 320 | . 200 120 . Destroy 0b10 Robot/NC 35 | . 15 20 . Destroy Leader 62 | . 42 20 . Allied During Kill 12 | . . 12 . Successful Hack 21 | . 21 . . Disable Machine 30 | . 30 . . Destroy Structure 29 | . 16 13 . Lose Combat Pursuer 30 | . . 30 . Influence Decreases 539 | . 288 251 . Entered New Map 23 | . . 23 . Time Decay 506 | . 278 228 . Lost Part 10 | . 10 . . Squads Dispatched 1 | . 1 . . Investigation 1 | . 1 . . Extermination . | . . . . Reinforcement . | . . . . Assault . | . . . . Garrison . | . . . . Intercept . | . . . . Searches Triggered . | . . . . Construction Impeded . | . . . . Haulers Reinforced . | . . . . Active Scanning Responses . | . . . . Cargo Convoy Interrupts . | . . . . Stealth | -11 -10 -10 -10 --------- Run | Yrd Mat Min Sub Distress Signals 1 | . 1 . . Communications Jammed . | . . . . Distress Signals . | . . . . Times Spotted 29 | . 11 8 10 Peak Tracking Total 4 | . 3 3 4 Tactical Retreats 1 | . . 1 . Traps | -11 -10 -10 -10 ------- Run | Yrd Mat Min Sub Traps Triggered 2 | . 1 . 1 Indirectly . | . . . . Trap Hack Attempts . | . . . . Triggered . | . . . . Disarmed . | . . . . Reprogrammed . | . . . . Reused . | . . . . Traps Extracted . | . . . . Installed . | . . . . Triggered . | . . . . Machines | -11 -10 -10 -10 ---------- Run | Yrd Mat Min Sub Machines Disabled 2 | . 2 . . Max in Single Turn 1 | . 1 . . Machines Repaired . | . . . . Machines Dismantled . | . . . . Machines Sabotaged . | . . . . Overloaded Fab Kills . | . . . . Hacking | -11 -10 -10 -10 --------- Run | Yrd Mat Min Sub Machines Accessed 11 | . 10 1 . Terminals 8 | . 7 1 . Fabricators . | . . . . Repair Stations 1 | . 1 . . Recycling Units 2 | . 2 . . Scanalyzers . | . . . . Garrison Access . | . . . . Total Hacks 32 | . 29 3 . Successful 13 | . 13 . . Failed 19 | . 16 3 . Catastrophic 1 | . 1 . . Database Lockouts . | . . . . Manual . | . . . . Terminals 23 | . 20 3 . Fabricators . | . . . . Repair Stations 7 | . 7 . . Recycling Units 2 | . 2 . . Scanalyzers . | . . . . Garrison Access . | . . . . Terminal Hacks 7 | . 7 . . Record 1 | . 1 . . Prototype ID Bank 2 | . 2 . . Branch Access Points 1 | . 1 . . Locate Traps 1 | . 1 . . Surveillance Status 1 | . 1 . . Registered Components 1 | . 1 . . Fabricator Hacks . | . . . . Repair Station Hacks 4 | . 4 . . Scan Component 2 | . 2 . . Repair 2 | . 2 . . Recycling Unit Hacks 2 | . 2 . . Retrieve Components 2 | . 2 . . Scanalyzer . | . . . . Garrison Access Hacks . | . . . . Unauthorized Hacks . | . . . . Terminals . | . . . . Fabricators . | . . . . Repair Stations . | . . . . Recycling Units . | . . . . Scanalyzers . | . . . . Garrison Access . | . . . . Data Cores Recovered . | . . . . Used . | . . . . Hacking Detections 9 | . 8 1 . Full Trace Events 1 | . 1 . . Feedback Events . | . . . . Feedback Blocked . | . . . . Robot Schematics Acquired . | . . . . Robots Built . | . . . . Authchips . | . . . . Time . | . . . . Total Robot Build Rating . | . . . . Part Schematics Acquired . | . . . . Parts Built . | . . . . Authchips . | . . . . Time . | . . . . Total Part Build Rating . | . . . . Parts Repaired 2 | . 2 . . Time 58 | . 58 . . Parts Recycled . | . . . . Recycled Matter . | . . . . Retrieved Matter . | . . . . Retrieved Components 9 | . 9 . . Parts Scanalyzed . | . . . . Part Schematics Acquired . | . . . . Parts Damaged . | . . . . Bothacking | -11 -10 -10 -10 ------------ Run | Yrd Mat Min Sub Used RIF Installer . | . . . . Robots Hacked . | . . . . Non-combat . | . . . . Combat . | . . . . Robot Hacks Applied . | . . . . Relay Couplers Released . | . . . . Fabnet Peak Effective % . | . . . . Robots Rewired . | . . . . Allies Hacked . | . . . . Hacks Repelled . | . . . . Allies | -11 -10 -10 -10 -------- Run | Yrd Mat Min Sub Total Allies 2 | . . 2 . Largest Group 2 | . . 2 2 Highest-Rated Group 43 | . . 43 43 Highest-Rated Ally 31 | . . 31 31 Total Orders . | . . . . Ally Attacks 24 | . . 15 9 Total Damage 843 | . . 280 563 Kills 6 | . . 4 2 Allies Corrupted . | . . . . Allies Melted . | . . . . Intel | -11 -10 -10 -10 ------- Run | Yrd Mat Min Sub Active Infowar (turns) 346 | . . 182 164 Sensors 346 | . . 182 164 Robot Analysis Total . | . . . . Derelict Logs Recovered 2 | . . 2 . Drone Launches . | . . . . Drone Recoveries . | . . . . Exploration | -11 -10 -10 -10 ------------- Run | Yrd Mat Min Sub Turns Passed 3028 | 71 1378 898 681 Spaces Moved 2019 | 49 819 692 459 Core 6 | 6 . . . Treads . | . . . . Legs 2013 | 43 819 692 459 Wheels . | . . . . Hover . | . . . . Flight . | . . . . Fastest Speed 50 | 50 120 120 120 Average Speed 135 | 111 151 120 131 Slowest Speed 190 | 120 190 120 190 Overloaded Moves . | . . . . Propulsion Burnouts . | . . . . Robots Hopped . | . . . . Potential Cave-ins . | . . . . Cave-ins Triggered . | . . . . Exploration Rate (%) 56 | 5 99 100 23 Regions Visited 3 Branch Regions 2 Pre-discovered Areas 2 | . . 1 1 Known Exits Taken 2 | . 1 1 . Unknown Exits Taken 1 | 1 . . . Scrap Searched 3 | . . 1 2 Spaces Dug 52 | . . . 52 Terrain Destroyed 162 | . 14 . 148 Melee . | . . . . Projectile . | . . . . AOE 162 | . 14 . 148 Terrain Rammed . | . . . . Walls Destroyed . | . . . . Machines Disabled . | . . . . Actions | -11 -10 -10 -10 --------- Run | Yrd Mat Min Sub Total 2203 | 65 908 727 503 Wait . | . . . . Move 2016 | 48 818 691 459 Hop . | . . . . Pick Up 51 | 10 30 1 10 Fast Attach . | . . . . Attach 17 | 6 7 1 3 Detach . | . . . . Swap 18 | 1 5 4 8 Drop 29 | . 20 2 7 Fire 51 | . 26 9 16 Melee 6 | . . 6 . Ram . | . . . . Kick 15 | . 2 13 . Crush . | . . . . Escape Stasis . | . . . . Rewire . | . . . . Trap . | . . . . Miscellaneous . | . . . . Route ------- -11/Scrapyard -10/Materials (discovered 5 exits: [*Mat x3] / *Min x2) -10/Mines (discovered 4 exits: [*Mat x2] / [*Exi] / *Sub) -10/Subcaves History --------- Turn | Location | Event 4 | -11/Scrapyard | Discovered new exit (range 14) 72 | -11/Scrapyard | Entered Materials 306 | -10/Materials | Build established: Mutant 347 | -10/Materials | Discovered new exit (range 16) 465 | -10/Materials | Discovered new exit (range 12) 621 | -10/Materials | Identified exit to Mines 850 | -10/Materials | Discovered new exit (range 16) 1052 | -10/Materials | Discovered new exit (range 15) 1324 | -10/Materials | Repaired Lgt. EM Pulse Cannon 1355 | -10/Materials | Repaired Weapon Shielding 1450 | -10/Materials | Entered Mines 1486 | -10/Mines | Learned location of Zion (-7) 1582 | -10/Mines | Found a damaged Exp. Sensor Array with a note attached 1585 | -10/Mines | Found Prototype Device 1602 | -10/Mines | Identified exit to Subcaves 1634 | -10/Mines | Discovered new exit (range 5) 1792 | -10/Mines | Discovered new exit (range 15) 2160 | -10/Mines | Deemed a non-threat by the Exiles lab entrance 2160 | -10/Mines | Discovered new exit (range 5) 2166 | -10/Mines | Identified Exp. Sensor Array 2348 | -10/Mines | Entered Subcaves 2348 | -10/Subcaves | Accompanied by 2 allies 2349 | -10/Subcaves | Approached by a straggling Scientist 2353 | -10/Subcaves | Led the pair of lost Derelicts to an unsafe place 2391 | -10/Subcaves | Met a Zionite searching for "candidates" 2425 | -10/Subcaves | Shifting Twisted Machinery released Sub. Shrapnel Launcher 2446 | -10/Subcaves | Shifting Twisted Machinery released Sub. Laser 2503 | -10/Subcaves | Core integrity fell below 50% 2581 | -10/Subcaves | Lost 3 allies 3010 | -10/Subcaves | Core integrity fell below 20% 3012 | -10/Subcaves | Ambushed by Subdweller buried in earth 3018 | -10/Subcaves | Ambushed by Subdweller buried in earth 3023 | -10/Subcaves | Ambushed by Subdweller buried in earth 3029 | -10/Subcaves | Destroyed by CB-X36(R) with Subdweller Laser Last Messages --------------- Found Sub. Power Source. Found Sub. Laser. Found 70 Matter. Dropped Lgt. Ion Engine. Acquired Sub. Power Source. Sub. Power Source shoots sparks and powers down. UN-W87(R): "SLEEPOVER!" DN-1NE(R): "ARGHSUB!" UN-W87(R) destroyed. 6F-I5L(R): "ARGHSUB!" Critical hit (Destroy). Imp. Aluminum Leg destroyed. CB-X36(R): "FREEEEDUMB!" DN-1NE(R) misfires. The unstable cave ceiling collapses. Weapon Shielding destroyed. DN-1NE(R) destroyed. XK-5Q7(R): "ARGHSUB!" QL-KUT(R): "ARGHSUB!" Sub. Beam Cannon destroyed. Map ----- +----------------------------------------------------+ | ?????????????????????????????????????????????????? | | ?????????????????????????????????????????????????? | | ?????????????????????????????????????????????????? | | ?????????????????????????????????????????????????? | | ?????????????????????????????????????????????????? | | ?????????????????????????????????????????????????? | | ?????????????????????????????????????????????????? | | ?????????????????????????????????????????????????? | | ?????????????????????????????????????????????????? | | ?????????????????????????????????????????????????? | | ?????????????????????????????????????????????????? | | ?????????????????????????????????????????????????? | | ?????????????????????????????????????????????????? | | ????????????#????????????????????????????????????? | | ???????????# ???????????????????????????????????? | | ??????????? ##?????????????????????###?????#### | | ?????????? ??????????????####### ###??## | | ?????????? R ?????????????#""""#" ####"" | | ?????????? ????????????#" " " ##""""" | | ????????? & #####???????## ## "" | | ????????? R ! ##?????## | | ????????# ##???## ;;; ##" | | ?????????# ##### ; "###" | | ??????????# R #####?#"## ## | | ??????????# # " ###""#### # | | ???????????#### #### ### @ """""#?## | | ?????????????####??###?# """""### # " | | ???#######?### ##?????## #### """"" ##### | | ???#""" "### #??????###??### "" #??## | | ???# "" "### #???????????### ##?## | | ??????#[] ## #?###??###?## ### | | ??????#% ## # ### #### ### ### | | ??????#" "# # ## " | | ??????### ## # """ | | ???????# #" # ## # ## ###"" | | ???????# ## ###### ## # ##?#"" | | ???????# ## #??## ## # # ## ###### | | ??????## #" # #### ### ####### ?# | | ??????#" ###" # ## ##??????#" "## | | ??????#" "## #### ## ##???????#" "" | | ????###[*"### # # ####### ##?????????## "" | | ????#"% ###?# ##### ####????????????###" | | ????#####???## ##??# #????????????????## | | ?????????????# ##???# ## #????????????????### | | ?????????????###???# ### ## #?????????????##?# # | | ???????????????????#####?######????????????## ## | | ???????????????????????????????????????????# % | | ???????????????????????????????????????????# " | | ???????????????????????????????????????????# """ | | ???????????????????????????????????????????# " | +----------------------------------------------------+ Best States ------------- Heat Dissipation 25 Energy Generation 15 Energy Capacity 250 Matter Stores 300 Matter Capacity 300 Sight Range 16 Robot Scan Range 20 Terrain Scan Density 10 Weapon Shielding 33 Evasion (%) 55 Item Schematics ----------------- None Robot Schematics ------------------ None Fabricated ------------ Nothing Repaired ---------- Lgt. EM Pulse Cannon | 2% | -10/Materials Weapon Shielding | 34% | -10/Materials Alien Tech Used ----------------- None Achievements -------------- None Challenges ------------ None Game ------ Seed ChargeChainSheargun Manual? 0 Play Time 00:35:14 Cumulative 6.5 hours Start 2025.08.30 @ 17:58:47 End 2025.08.30 @ 18:39:08 Sessions 1 Manual Loads 0 Difficulty Rogue Special Mode None Game No. 8 Rogue 8 Adventurer 0 Explorer 0 Win Type - Total 0 Types 0/0/0/0/0/0/0/0/0/0 Lore% 2 Gallery% 9 Achievement% 7 Wizard Run 0 Options --------- Layout 1 ASCII 0 Keyboard 0 Movement Mouse Keybinds 0 Fullscreen 1 Font 24/Smallcaps Map View 50x35 Zoom Use 0% Tactical HUD 0 Map Filters NONE Filters NONE Steam 1 RUN: 4a0a9cf6-024b-44a1-9580-9901d728dafc